fUSD/lending_fUSD_20260620
["ID","MTS","AMOUNT","RATE_DAILY","PERIOD"]
[425802895,1781910644000,-190.55304084,0.0003267,2]
[425802897,1781910644000,-500.0,0.00032674,24]
[425802896,1781910644000,-3000.0,0.0003267,3]
[425802911,1781910644000,-151.0,0.00032877,7]
[425802898,1781910644000,-2772.78958734,0.000327,2]
[425802906,1781910644000,-167.45969096,0.000328,2]
[425802902,1781910644000,-209.40437684,0.00032721,2]
[425802907,1781910644000,-7100.50717043,0.0003281,120]
[425802905,1781910644000,-381.80942428,0.00032721,2]
[425802901,1781910644000,-747.80937859,0.0003272,2]
[425802903,1781910644000,-151.0,0.00032721,2]
[425802900,1781910644000,-599.60298507,0.0003272,2]
[425802908,1781910644000,-204.0,0.0003286,30]
[425802909,1781910644000,-519.01954751,0.00032873,2]
[425802910,1781910644000,-151.0,0.00032877,7]
[425802899,1781910644000,-972.4798767,0.00032702,2]
[425802937,1781910644000,-500.0,0.00032999,7]
[425802933,1781910644000,-176.14364569,0.00032939,2]
[425802939,1781910644000,-1000.0,0.00032999,120]
[425802969,1781910644000,-12499.99,0.00033,2]
[425802970,1781910644000,-15000.0,0.00033,2]
[425802968,1781910644000,-22500.0,0.00033,2]
[425802973,1781910644000,-214.37,0.00033,2]
[425802971,1781910644000,-15000.0,0.00033,2]
[425802972,1781910644000,-22499.99,0.00033,2]
[425802976,1781910644000,-22500.0,0.00033,2]
[425802977,1781910644000,-12499.99,0.00033,2]
[425802974,1781910644000,-12499.99,0.00033,2]
[425802979,1781910644000,-15000.0,0.00033,2]
[425802967,1781910644000,-12499.99,0.00033,2]
[425802978,1781910644000,-15000.0,0.00033,2]
[425802981,1781910644000,-8481.78,0.00033,2]
[425802984,1781910644000,-12499.99,0.00033,2]
[425802983,1781910644000,-10000.0,0.00033,2]
[425802982,1781910644000,-22499.99,0.00033,2]
[425802985,1781910644000,-15000.0,0.00033,2]
[425802988,1781910644000,-384.502733,0.00033,7]
[425802987,1781910644000,-384.502733,0.00033,7]
[425802986,1781910644000,-13381.04,0.00033,2]
[425802989,1781910644000,-15000.0,0.00033,2]
[425802936,1781910644000,-500.0,0.00032999,7]
[425802980,1781910644000,-6326.03,0.00033,2]
[425802965,1781910644000,-22500.0,0.00033,2]
[425802975,1781910644000,-6791.09,0.00033,2]
[425802963,1781910644000,-12500.0,0.00033,2]
[425802938,1781910644000,-300.0,0.00032999,10]
[425802966,1781910644000,-22499.99,0.00033,2]
[425802943,1781910644000,-9999.99,0.00033,2]
[425802944,1781910644000,-12499.98,0.00033,2]
[425802945,1781910644000,-22499.99,0.00033,2]
[425802950,1781910644000,-4178.16,0.00033,2]
[425802947,1781910644000,-12499.99,0.00033,2]
[425802949,1781910644000,-1641.17,0.00033,2]
[425802951,1781910644000,-15000.0,0.00033,2]
[425802948,1781910644000,-15000.0,0.00033,2]
[425802946,1781910644000,-9999.99,0.00033,2]
[425802955,1781910644000,-15000.0,0.00033,2]
[425802942,1781910644000,-51269.0703596,0.00033,3]
[425802952,1781910644000,-9999.96,0.00033,2]
[425802954,1781910644000,-5035.8160326,0.00033,14]
[425802961,1781910644000,-18268.29,0.00033,2]
[425802956,1781910644000,-15000.0,0.00033,2]
[425802962,1781910644000,-15000.0,0.00033,2]
[425802960,1781910644000,-7524.16,0.00033,2]
[425802964,1781910644000,-10000.0,0.00033,2]
[425802957,1781910644000,-12500.0,0.00033,2]
[425802958,1781910644000,-10000.0,0.00033,2]
[425802953,1781910644000,-3188.42,0.00033,2]
[425802959,1781910644000,-22500.0,0.00033,2]
[425803001,1781910645000,-15000.0,0.0003307,2]
[425803009,1781910645000,-22500.0,0.00033088,2]
[425803008,1781910645000,-12500.0,0.00033088,2]
[425803007,1781910645000,-307.29468666,0.00033086,10]
[425803005,1781910645000,-15000.0,0.0003307,2]
[425803004,1781910645000,-15000.0,0.0003307,2]
[425803011,1781910645000,-22500.0,0.00033088,2]
[425803003,1781910645000,-10078.4,0.0003307,2]
[425803002,1781910645000,-15000.0,0.0003307,2]
[425803000,1781910645000,-1000.0,0.00033069,120]
[425802996,1781910645000,-384.502733,0.00033,7]
[425802993,1781910645000,-384.502733,0.00033,7]
[425802994,1781910645000,-384.502733,0.00033,7]
[425802991,1781910645000,-384.502733,0.00033,7]
[425802995,1781910645000,-384.502733,0.00033,7]
[425802998,1781910645000,-151.0,0.00033,7]
[425802997,1781910645000,-22499.99,0.00033,2]
[425802992,1781910645000,-12500.0,0.00033,2]
[425802990,1781910645000,-384.502733,0.00033,7]
[425803006,1781910645000,-15000.0,0.0003307,2]
[425802999,1781910645000,-300.0,0.00033069,10]
[425803010,1781910645000,-12500.0,0.00033088,2]
[425803027,1781910645000,-12500.0,0.00033175,2]
[425803013,1781910645000,-22499.98,0.00033088,2]
[425803034,1781910645000,-157546.24312173,0.000332,2]
[425803032,1781910645000,-1000.0,0.00033199,120]
[425803030,1781910645000,-300.0,0.00033199,10]
[425803028,1781910645000,-22500.0,0.00033175,2]
[425803029,1781910645000,-437.0,0.00033186,2]
[425803026,1781910645000,-22500.0,0.00033175,2]
[425803033,1781910645000,-213237.45395235,0.000332,2]
[425803024,1781910645000,-1000.0,0.00033174,120]
[425803025,1781910645000,-12500.0,0.00033175,2]
[425803019,1781910645000,-250.0,0.0003314,28]
[425803023,1781910645000,-300.0,0.00033174,10]
[425803022,1781910645000,-15000.0,0.0003314,2]
[425803020,1781910645000,-284.33,0.0003314,28]
[425803018,1781910645000,-250.0,0.0003314,28]
[425803017,1781910645000,-2593.71906954,0.00033113,2]
[425803016,1781910645000,-1800.54663053,0.0003311,2]
[425803021,1781910645000,-15000.0,0.0003314,2]
[425803012,1781910645000,-22499.98,0.00033088,2]
[425803014,1781910645000,-367.38650648,0.00033088,2]
[425803031,1781910645000,-298.32817687,0.00033199,120]
[425803015,1781910645000,-424.69,0.000331,15]
[425803037,1781910648000,-209.18457855,0.00016436,2]
[425803038,1781910648000,-801.38882145,0.00022,2]
[425803047,1781910787000,-500.0,0.00016435,2]
[425803048,1781911002000,-152.0,0.00016435,2]
[425803049,1781911216000,-772.83201509,0.00016334,2]
[425803050,1781911217000,1000.0,0.0003013,120]
[425803051,1781911223000,1000.0,0.0003013,120]
[425803052,1781911225000,1000.0,0.0003013,120]
[425803053,1781911429000,-150.0,0.00016435,2]
[425803059,1781911643000,-500.0,0.00016434,2]
[425803073,1781911831000,-150.0,0.00016435,2]
[425803070,1781911831000,-151.0,0.00016435,2]
[425803074,1781911831000,-26.64182069,0.00016435,2]
[425803072,1781911831000,-151.0,0.00016435,2]
[425803067,1781911831000,-151.0,0.00016435,2]
[425803071,1781911831000,-151.0,0.00016435,2]
[425803066,1781911831000,-153.0,0.00016435,2]
[425803068,1781911831000,-151.0,0.00016435,2]
[425803065,1781911831000,-475.15977918,0.00016434,2]
[425803069,1781911831000,-151.0,0.00016435,2]
[425803075,1781911831000,-125.35817931,0.00016435,2]
[425803081,1781911831000,-151.0,0.00016435,2]
[425803077,1781911831000,-151.0,0.00016435,2]
[425803076,1781911831000,-151.0,0.00016435,2]
[425803087,1781911831000,-850.0,0.00019999,2]
[425803084,1781911831000,-151.0,0.00016436,2]
[425803085,1781911831000,-250.0,0.00018077,2]
[425803086,1781911831000,-150.1,0.00019999,2]
[425803082,1781911831000,-151.0,0.00016436,2]
[425803078,1781911831000,-151.0,0.00016435,2]
[425803079,1781911831000,-228.62641723,0.00016435,2]
[425803080,1781911831000,-151.0,0.00016435,2]
[425803083,1781911831000,-151.0,0.00016436,2]
[425803114,1781911832000,-154.05979114,0.00022407,2]
[425803112,1781911832000,-8593.28981788,0.00022,2]
[425803113,1781911832000,-154.05979114,0.00022407,2]
[425803116,1781911832000,-153.07771104,0.00022704,2]
[425803118,1781911832000,-151.0,0.00022717,2]
[425803115,1781911832000,-481.47,0.00022466,2]
[425803117,1781911832000,-151.0,0.00022717,2]
[425803119,1781911832000,-151.0,0.00022717,2]
[425803120,1781911832000,-151.0,0.00022717,2]
[425803132,1781911832000,-151.0,0.00022717,2]
[425803121,1781911832000,-151.0,0.00022717,2]
[425803122,1781911832000,-151.0,0.00022717,2]
[425803124,1781911832000,-151.0,0.00022717,2]
[425803131,1781911832000,-151.0,0.00022717,2]
[425803111,1781911832000,-948.11018212,0.00022,2]
[425803126,1781911832000,-151.0,0.00022717,2]
[425803127,1781911832000,-151.0,0.00022717,2]
[425803125,1781911832000,-151.0,0.00022717,2]
[425803129,1781911832000,-151.0,0.00022717,2]
[425803123,1781911832000,-151.0,0.00022717,2]
[425803107,1781911832000,-472.1702673,0.00016433,2]
[425803105,1781911832000,-253.07403219,0.00022,2]
[425803108,1781911832000,-4012.34596781,0.00022,2]
[425803091,1781911832000,-152.0,0.0002,2]
[425803092,1781911832000,-261.0,0.0002,2]
[425803089,1781911832000,-350.0,0.0002,2]
[425803093,1781911832000,-151.33,0.00020657,2]
[425803090,1781911832000,-158.0,0.0002,2]
[425803088,1781911832000,-221.0,0.0002,2]
[425803094,1781911832000,-950.0,0.00020999,2]
[425803095,1781911832000,-221.0,0.00021,2]
[425803096,1781911832000,-350.0,0.00021,2]
[425803109,1781911832000,-100.48376489,0.00022,2]
[425803097,1781911832000,-167.0,0.00021,2]
[425803098,1781911832000,-152.0,0.00021,2]
[425803100,1781911832000,-260.99,0.00021,2]
[425803103,1781911832000,-350.0,0.00022,2]
[425803099,1781911832000,-261.0,0.00021,2]
[425803102,1781911832000,-221.0,0.00022,2]
[425803104,1781911832000,-159.0,0.00022,2]
[425803130,1781911832000,-151.0,0.00022717,2]
[425803106,1781911832000,-500.0,0.00016433,2]
[425803110,1781911832000,-160.51623511,0.00022,2]
[425803101,1781911832000,-4844.13,0.00021,2]
[425803128,1781911832000,-151.0,0.00022717,2]
[425803133,1781911832000,-151.0,0.00022717,2]
[425803135,1781911832000,-151.0,0.00022717,2]
[425803161,1781911832000,-5000.0,0.00025546,2]
[425803160,1781911832000,-166.66,0.00025496,30]
[425803162,1781911832000,-166.66,0.00026011,30]
[425803163,1781911832000,-300.92,0.00026027,7]
[425803165,1781911832000,-163.21,0.00026527,2]
[425803164,1781911832000,-166.66,0.00026527,30]
[425803166,1781911832000,-166.35420591,0.000267,2]
[425803167,1781911832000,-9420.06017076,0.000267,2]
[425803168,1781911832000,-441.04273862,0.000267,2]
[425803169,1781911832000,-166.35420591,0.00027,2]
[425803171,1781911832000,-441.04273862,0.00027,2]
[425803170,1781911832000,-9420.06017076,0.00027,2]
[425803172,1781911832000,-166.66,0.00027042,30]
[425803173,1781911832000,-509.0,0.00027137,2]
[425803174,1781911832000,-166.35420591,0.000272,2]
[425803175,1781911832000,-9420.06017076,0.000272,2]
[425803178,1781911832000,-687.78305494,0.0002728,7]
[425803176,1781911832000,-150.27590915,0.000272,2]
[425803177,1781911832000,-290.76682947,0.000272,2]
[425803134,1781911832000,-151.0,0.00022717,2]
[425803158,1781911832000,-1000.0,0.00025349,2]
[425803159,1781911832000,-182.73,0.00025383,2]
[425803155,1781911832000,-229.0,0.00025,2]
[425803137,1781911832000,-500.0,0.00022718,2]
[425803136,1781911832000,-151.0,0.00022717,2]
[425803143,1781911832000,-174.32018807,0.0002364,2]
[425803144,1781911832000,-221.0,0.00024,2]
[425803140,1781911832000,-350.0,0.00023,2]
[425803145,1781911832000,-350.0,0.00024,2]
[425803142,1781911832000,-261.0,0.00023,2]
[425803157,1781911832000,-268.0485022,0.00025,2]
[425803139,1781911832000,-221.0,0.00023,2]
[425803138,1781911832000,-500.0,0.00022992,2]
[425803141,1781911832000,-550.0,0.00023,2]
[425803148,1781911832000,-421.29,0.0002411,2]
[425803151,1781911832000,-159.44,0.00024658,2]
[425803153,1781911832000,-159.39,0.00024658,2]
[425803154,1781911832000,-166.66,0.00024981,30]
[425803152,1781911832000,-159.45,0.00024658,2]
[425803149,1781911832000,-166.66,0.00024466,30]
[425803150,1781911832000,-4186.65,0.0002464,7]
[425803147,1781911832000,-261.0,0.00024,2]
[425803156,1781911832000,-366.0,0.00025,2]
[425803146,1781911832000,-183.69325324,0.00024,2]
[425803184,1781911837000,-159.4,0.00024658,2]
[425803187,1781911837000,-2854.87,0.0002728,7]
[425803186,1781911837000,-159.4,0.00025753,7]
[425803188,1781911838000,-400.63694506,0.0002728,7]
[425803189,1781911838000,-431.02922488,0.00027397,2]
[425803190,1781911838000,-1500.0,0.00027397,2]
[425803191,1781911838000,-300.0,0.00027397,2]
[425803192,1781911838000,-4658.4662208,0.00027397,10]
[425803193,1781911838000,-550.74,0.00027397,10]
[425803214,1781911840000,-254.896815,0.00027397,10]
[425803213,1781911840000,-3518.3261899,0.00027397,10]
[425803215,1781911841000,-2412.21045836,0.00027397,10]
[425803219,1781911841000,-3453.81031594,0.00027397,10]
[425803220,1781911841000,-12373.71,0.00027397,10]
[425803221,1781911841000,-2414.64198518,0.000274,2]
[425803222,1781911841000,-9420.06017076,0.000275,2]
[425803226,1781911841000,-183.69325324,0.00027656,2]
[425803223,1781911841000,-441.04273862,0.000275,2]
[425803228,1781911841000,-6953.44195077,0.000278,2]
[425803225,1781911841000,-499.058282,0.000275,2]
[425803227,1781911841000,-376.92130349,0.00027701,15]
[425803224,1781911841000,-500.0,0.000275,7]
[425803246,1781911843000,-159.4,0.00028525,2]
[425803245,1781911843000,-159.39,0.00028523,2]
[425803244,1781911843000,-509.0,0.00028459,3]
[425803241,1781911843000,-718.94569198,0.000283,2]
[425803239,1781911843000,-718.945692,0.000283,2]
[425803240,1781911843000,-718.94569198,0.000283,2]
[425803243,1781911843000,-496.12,0.0002831,2]
[425803233,1781911843000,-500.0,0.00027802,15]
[425803238,1781911843000,-9420.06017076,0.000283,2]
[425803235,1781911843000,-9420.06017076,0.00028,2]
[425803236,1781911843000,-321.769054,0.00028,2]
[425803248,1781911843000,-159.39,0.00028759,7]
[425803231,1781911843000,-2187.34668831,0.000278,2]
[425803232,1781911843000,-441.04273862,0.000278,2]
[425803230,1781911843000,-279.27153168,0.000278,2]
[425803237,1781911843000,-2414.64198517,0.00028129,2]
[425803234,1781911843000,-153.07771104,0.00027922,2]
[425803247,1781911843000,-9420.06017076,0.000286,2]
[425803252,1781911843000,-2414.64198517,0.00028858,2]
[425803268,1781911843000,-8724.47431562,0.000292,2]
[425803266,1781911843000,-159.39,0.00028996,30]
[425803265,1781911843000,-261.0,0.00028921,30]
[425803262,1781911843000,-158.0,0.00028921,30]
[425803264,1781911843000,-152.0,0.00028921,30]
[425803263,1781911843000,-162.0,0.00028921,30]
[425803260,1781911843000,-158.0,0.0002892,30]
[425803267,1781911843000,-159.4,0.00028996,30]
[425803259,1781911843000,-350.0,0.0002892,30]
[425803258,1781911843000,-221.0,0.0002892,30]
[425803253,1781911843000,-10311.42,0.0002889,10]
[425803254,1781911843000,-9420.06017076,0.000289,2]
[425803251,1781911843000,-159.4,0.0002876,7]
[425803255,1781911843000,-162.0,0.0002892,30]
[425803257,1781911843000,-165.0,0.0002892,30]
[425803261,1781911843000,-158.0,0.0002892,30]
[425803256,1781911843000,-173.0,0.0002892,30]
[425803274,1781911846000,-1350.09704807,0.00027397,2]
[425803273,1781911846000,-285.77087052,0.00025601,2]
[425803272,1781911846000,-250.0,0.00024932,2]
[425803278,1781912016000,-500.0,0.00016432,2]
[425803280,1781912179000,-472.1702673,0.00017639,2]
[425803283,1781912401000,-500.0,0.00019402,2]
[425803284,1781912449000,222.78,0.00029889,120]
[425803286,1781912622000,-222.66,0.00017191,2]
[425803287,1781912637000,-151.0,0.00017191,2]
[425803288,1781912797000,-151.0,0.00017191,2]
[425803290,1781912797000,-110.8832417,0.00019402,2]
[425803289,1781912797000,-152.0,0.00019402,2]
[425803291,1781912807000,433.16,0.00021973,30]
[425803292,1781912834000,-150.0,0.00017746,2]
[425803293,1781912987000,-263.88072195,0.0001821,2]
[425803299,1781913031000,-1500.0,0.00018673,2]
[425803358,1781913032000,-151.0,0.00023605,2]
[425803332,1781913032000,-151.0,0.00022,2]
[425803335,1781913032000,-1694.98,0.00022,2]
[425803333,1781913032000,-157.0,0.00022,2]
[425803330,1781913032000,-319.0,0.00022,2]
[425803329,1781913032000,-217.0,0.00022,2]
[425803334,1781913032000,-210.0,0.00022,2]
[425803339,1781913032000,-217.0,0.00023,2]
[425803336,1781913032000,-1240.67,0.00022466,2]
[425803337,1781913032000,-177.5701448,0.00022705,2]
[425803338,1781913032000,-16026.8964,0.000229,2]
[425803342,1781913032000,-151.0,0.00023,2]
[425803346,1781913032000,-1580.21,0.00023244,7]
[425803354,1781913032000,-151.0,0.00023605,2]
[425803343,1781913032000,-157.0,0.00023,2]
[425803340,1781913032000,-319.0,0.00023,2]
[425803344,1781913032000,-210.0,0.00023,2]
[425803345,1781913032000,-367.0,0.00023,2]
[425803347,1781913032000,-747.17,0.00023288,2]
[425803348,1781913032000,-166.66,0.00023491,30]
[425803349,1781913032000,-200.0,0.00023605,2]
[425803351,1781913032000,-151.0,0.00023605,2]
[425803350,1781913032000,-151.0,0.00023605,2]
[425803353,1781913032000,-151.0,0.00023605,2]
[425803356,1781913032000,-193.63627161,0.00023605,2]
[425803331,1781913032000,-158.0,0.00022,2]
[425803341,1781913032000,-158.0,0.00023,2]
[425803325,1781913032000,-151.0,0.00021,2]
[425803324,1781913032000,-158.0,0.00021,2]
[425803302,1781913032000,-1555.5,0.00019221,2]
[425803300,1781913032000,-153.0,0.00018673,2]
[425803301,1781913032000,-615.64140719,0.0001922,2]
[425803303,1781913032000,-40.1167583,0.00019402,2]
[425803304,1781913032000,-151.0,0.00019402,2]
[425803305,1781913032000,-228.0,0.00019402,2]
[425803308,1781913032000,-2500.0,0.0001952,2]
[425803307,1781913032000,-2500.0,0.0001952,2]
[425803306,1781913032000,-217.72718406,0.00019431,3]
[425803310,1781913032000,-2500.0,0.0001952,2]
[425803309,1781913032000,-2500.0,0.0001952,2]
[425803311,1781913032000,-2500.0,0.0001952,2]
[425803328,1781913032000,-1617.2,0.00021622,2]
[425803315,1781913032000,-158.0,0.0002,2]
[425803313,1781913032000,-217.0,0.0002,2]
[425803314,1781913032000,-319.0,0.0002,2]
[425803318,1781913032000,-210.0,0.0002,2]
[425803316,1781913032000,-151.0,0.0002,2]
[425803323,1781913032000,-319.0,0.00021,2]
[425803321,1781913032000,-1676.38045734,0.00020865,2]
[425803320,1781913032000,-1672.7364795,0.00020317,2]
[425803322,1781913032000,-217.0,0.00021,2]
[425803319,1781913032000,-1654.84,0.0002,2]
[425803317,1781913032000,-157.0,0.0002,2]
[425803326,1781913032000,-157.0,0.00021,2]
[425803327,1781913032000,-210.0,0.00021,2]
[425803312,1781913032000,-1613.0535,0.00019769,2]
[425803359,1781913032000,-500.0,0.00023605,2]
[425803373,1781913032000,-151.0,0.00023605,2]
[425803355,1781913032000,-151.0,0.00023605,2]
[425803399,1781913032000,-200.0,0.00024796,2]
[425803398,1781913032000,-206.0,0.00024747,2]
[425803391,1781913032000,-1378.17,0.0002464,7]
[425803396,1781913032000,-200.0,0.00024701,2]
[425803392,1781913032000,-194.06,0.0002464,7]
[425803397,1781913032000,-1783.19,0.0002474,2]
[425803394,1781913032000,-163.31,0.00024658,2]
[425803393,1781913032000,-155.6,0.00024658,2]
[425803395,1781913032000,-160.06,0.00024658,2]
[425803400,1781913032000,-1293.11,0.00024866,7]
[425803401,1781913032000,-166.66,0.00024975,30]
[425803403,1781913032000,-334.0,0.00025,2]
[425803402,1781913032000,-226.0,0.00025,2]
[425803404,1781913032000,-215.0,0.00025,2]
[425803357,1781913032000,-151.0,0.00023605,2]
[425803407,1781913032000,-177.5701448,0.00025323,2]
[425803406,1781913032000,-284.4061351,0.00025249,2]
[425803410,1781913032000,-166.66,0.0002547,30]
[425803411,1781913032000,-153.87662259,0.00025601,2]
[425803408,1781913032000,-163.31,0.00025342,7]
[425803405,1781913032000,-500.0,0.00025096,2]
[425803412,1781913032000,-24619.45472218,0.00025786,2]
[425803414,1781913032000,-784.82902607,0.00025786,2]
[425803413,1781913032000,-3667.98258065,0.00025786,2]
[425803415,1781913032000,-3506.31976399,0.00025786,2]
[425803389,1781913032000,-39502.85,0.00024174,2]
[425803388,1781913032000,-200.0,0.00024153,2]
[425803409,1781913032000,-160.06,0.00025342,7]
[425803387,1781913032000,-210.0,0.00024,2]
[425803390,1781913032000,-166.66,0.0002448,30]
[425803360,1781913032000,-500.0,0.00023605,2]
[425803361,1781913032000,-151.0,0.00023605,2]
[425803363,1781913032000,-151.0,0.00023605,2]
[425803362,1781913032000,-500.0,0.00023605,2]
[425803364,1781913032000,-500.0,0.00023605,2]
[425803370,1781913032000,-500.0,0.00023605,2]
[425803367,1781913032000,-151.0,0.00023605,2]
[425803372,1781913032000,-500.0,0.00023605,2]
[425803366,1781913032000,-500.0,0.00023605,2]
[425803368,1781913032000,-500.0,0.00023605,2]
[425803365,1781913032000,-151.0,0.00023605,2]
[425803369,1781913032000,-151.0,0.00023605,2]
[425803376,1781913032000,-151.0,0.00023605,2]
[425803374,1781913032000,-336.29523479,0.00023605,2]
[425803377,1781913032000,-500.0,0.00023605,2]
[425803375,1781913032000,-163.70476521,0.00023605,2]
[425803380,1781913032000,-150.0,0.00023684,2]
[425803383,1781913032000,-319.0,0.00024,2]
[425803378,1781913032000,-151.0,0.00023605,2]
[425803386,1781913032000,-162.0,0.00024,2]
[425803382,1781913032000,-217.0,0.00024,2]
[425803381,1781913032000,-166.66,0.00023986,30]
[425803384,1781913032000,-168.0,0.00024,2]
[425803385,1781913032000,-162.0,0.00024,2]
[425803371,1781913032000,-151.0,0.00023605,2]
[425803379,1781913032000,-500.0,0.00023605,2]
[425803418,1781913038000,-164.9,0.00024658,2]
[425803417,1781913038000,-288.66080411,0.0002048,2]
[425803416,1781913038000,-246.0,0.00018673,2]
[425803421,1781913038000,-631.55343471,0.00025786,2]
[425803420,1781913038000,-1292.47719586,0.00025786,2]
[425803422,1781913038000,-570.91049183,0.00025786,2]
[425803419,1781913038000,-164.9,0.00025342,7]
[425804064,1781913043000,-1039.64,0.00026488,7]
[425804018,1781913043000,-285.0,0.00025858,2]
[425804021,1781913043000,-164.9,0.00026027,30]
[425804015,1781913043000,-4429.32278471,0.00025786,2]
[425804019,1781913043000,-166.66,0.00025964,30]
[425804023,1781913043000,-125.01804536,0.00026296,2]
[425804060,1781913043000,-25.98195464,0.00026296,2]
[425804062,1781913043000,-5000.0,0.00026394,2]
[425804084,1781913043000,-390.84432026,0.000267,2]
[425804066,1781913043000,-433.963723,0.00026489,2]
[425804080,1781913043000,-771.16830873,0.000267,2]
[425804082,1781913043000,-185.80986366,0.000267,2]
[425804068,1781913043000,-337.598249,0.00026489,2]
[425804087,1781913043000,-1000.0,0.00026776,2]
[425804071,1781913043000,-150.0,0.00026489,5]
[425804075,1781913043000,-68.71210113,0.000267,2]
[425804089,1781913043000,-72.42552092,0.0002695,2]
[425804073,1781913043000,-222.78,0.00026568,2]
[425804077,1781913043000,-105.18436266,0.000267,2]
[425804427,1781913046000,-30.5045105,0.00027,2]
[425804424,1781913046000,-495.94447908,0.0002695,2]
[425805061,1781913138000,-386.15,0.00022,2]
[425805062,1781913153000,163.24,0.00026969,120]
[425805063,1781913191000,-151.0,0.00018,2]
[425805064,1781913233000,348.57,0.00028779,120]
[425805065,1781913246000,-404.0,0.00020033,2]
[425805067,1781913299000,-404.0,0.00020048,2]
[425805068,1781913352000,-189.07949596,0.00019958,2]
[425805074,1781913406000,-500.0,0.00019999,2]
[425805076,1781913459000,-850.0,0.00019998,2]
[425805077,1781913513000,-570.91049183,0.00019592,2]
[425805078,1781913527000,-929.08950817,0.00019592,2]
[425805079,1781913739000,-850.0,0.0001959,2]
[425805082,1781913890000,-151.0,0.00017681,2]
[425805083,1781913900000,642.43,0.00030137,120]
[425805084,1781914109000,-150.0,0.00018572,2]
[425805085,1781914202000,344.07,0.00027818,120]
[425805120,1781914232000,-216.24448118,0.00019469,2]
[425805128,1781914232000,-175.0,0.0002,2]
[425805123,1781914232000,-166.66,0.00019963,2]
[425805124,1781914232000,-150.99,0.00019963,2]
[425805122,1781914232000,-1613.0535,0.0001995,2]
[425805125,1781914232000,-244.0,0.0002,2]
[425805119,1781914232000,-1555.5,0.00019402,2]
[425805118,1781914232000,-1500.0,0.00018854,2]
[425805112,1781914232000,-298.83511222,0.00018852,2]
[425805115,1781914232000,-516.23253367,0.00018852,2]
[425805114,1781914232000,-12.22974023,0.00018852,2]
[425805129,1781914232000,-152.0,0.0002,2]
[425805113,1781914232000,-227.19242934,0.00018852,2]
[425805111,1781914232000,-161.93359947,0.00018852,2]
[425805101,1781914232000,-197.42064924,0.00018852,2]
[425805102,1781914232000,-338.06640053,0.00018852,2]
[425805117,1781914232000,-150.0,0.00018852,2]
[425805121,1781914232000,-1472.50377312,0.00019589,2]
[425805116,1781914232000,-321.5377261,0.00018852,2]
[425805127,1781914232000,-167.0,0.0002,2]
[425805126,1781914232000,-384.0,0.0002,2]
[425805147,1781914232000,-401.0,0.00020123,2]
[425805145,1781914232000,-313.0,0.00020084,2]
[425805144,1781914232000,-407.0,0.00020059,2]
[425805146,1781914232000,-316.0,0.00020084,2]
[425805143,1781914232000,-404.0,0.00020052,2]
[425805141,1781914232000,-405.0,0.00020049,2]
[425805137,1781914232000,-400.0,0.0002,2]
[425805136,1781914232000,-228.44467688,0.0002,2]